bitfinex-derivatives/quotes_BNBF0:USTF0_20250211
["timestamp","ask_amount","ask_price","bid_price","bid_amount"]
[1739273064062,0.31192488,641.18,640.22,1.16062582]
[1739273064666,0.31192488,641.18,640.19,1.16062582]
[1739273064866,0.31192488,641.18,640.2,0.28670482]
[1739273065168,0.31192488,641.18,640.19,1.16062582]
[1739273067170,0.31192488,641.18,640.15,1.16062582]
[1739273067367,0.31192488,641.18,640.16,0.28670953]
[1739273070268,0.31192488,641.18,640.15,1.16062582]
[1739273070874,0.31192488,641.18,640.18,1.16062582]
[1739273071974,0.31192488,641.18,640.19,0.28672841]
[1739273075077,0.31192488,641.18,640.18,1.16062582]
[1739273076074,0.31192488,641.18,640.28,1.16062582]
[1739273079781,0.31192488,641.18,640.25,1.16062582]
[1739273082479,0.31192488,641.18,640.22,1.16062582]
[1739273084981,0.31192488,641.18,640.23,0.28675232]
[1739273085488,0.31192488,641.18,640.23,1.16062582]
[1739273087783,0.31192488,641.18,640.22,1.16062582]
[1739273087984,0.31192488,641.18,640.23,0.28675325]
[1739273088186,0.31192488,641.18,640.22,1.16062582]
[1739273088385,0.31192488,641.18,640.23,0.28675662]
[1739273089983,0.31192488,641.18,640.24,1.16062582]
[1739273094492,0.31192488,641.18,640.01,1.16062582]
[1739273097797,0.31192488,641.18,639.99,1.16062582]
[1739273099194,0.31192488,641.18,640.0,0.2867936]
[1739273099894,0.31192488,641.18,639.99,1.16062582]
[1739273100095,0.31192488,641.18,639.95,1.16062582]
[1739273100295,0.31192488,641.18,639.96,0.28680202]
[1739273102490,0.31192488,641.18,639.97,0.28680202]
[1739273102690,0.31192488,641.18,639.95,0.28680202]
[1739273102894,0.31192488,641.18,639.96,0.28680202]
[1739273103095,0.31192488,641.18,639.95,0.28680202]
[1739273103299,0.31192488,641.18,639.96,0.28680202]
[1739273103600,0.31192488,641.18,639.97,0.28680202]
[1739273103798,0.31192488,641.18,639.95,0.28680202]
[1739273103994,0.31192488,641.18,639.96,0.28680202]
[1739273104196,0.31192488,641.18,639.95,0.28680202]
[1739273104396,0.31192488,641.18,639.96,0.28680202]
[1739273104595,0.31192488,641.18,639.95,0.28680202]
[1739273104790,0.31192488,641.18,639.96,0.28680202]
[1739273104991,0.31192488,641.18,639.97,0.28680202]
[1739273105192,0.31192488,641.18,639.98,0.2868138]
[1739273105395,0.31192488,641.18,639.95,0.2868138]
[1739273105595,0.31192488,641.18,639.96,0.2868138]
[1739273105795,0.31192488,641.18,639.95,0.2868138]
[1739273105997,0.31192488,641.18,639.99,1.16062582]
[1739273106196,0.31192488,641.18,640.0,0.2868138]
[1739273107897,0.31192488,641.18,640.03,1.16062582]
[1739273108093,0.31192488,641.18,640.04,0.2868138]
[1739273108696,0.31192488,641.18,640.05,0.28679633]
[1739273108898,0.31192488,641.18,640.03,1.16062582]
[1739273109096,0.31192488,641.18,640.04,0.28680682]
[1739273110101,0.31192488,641.18,640.03,1.16062582]
[1739273110500,0.31192488,641.18,640.04,0.28680598]
[1739273111102,0.31192488,641.18,640.05,0.28680598]
[1739273111304,0.31192488,641.18,640.03,0.28680598]
[1739273111501,0.31192488,641.18,640.04,0.28680598]
[1739273111701,0.31192488,641.18,640.05,0.28680598]
[1739273111901,0.31192488,641.18,640.03,0.28680598]
[1739273112101,0.31192488,641.18,640.04,0.28680598]
[1739273112301,0.31192488,641.18,640.03,0.28680598]
[1739273112506,0.31192488,641.18,640.04,0.28680598]
[1739273112704,0.31192488,641.18,640.03,0.28680598]
[1739273112906,0.31192488,641.18,640.05,1.16062582]
[1739273113102,0.31192488,641.18,640.06,0.28680598]
[1739273115808,0.31192488,641.18,640.08,1.16062582]
[1739273116213,0.31192488,641.18,640.09,0.28680337]
[1739273119211,0.31192488,641.18,640.08,1.16062582]
[1739273119411,0.31192488,641.18,640.09,0.28680241]
[1739273120412,0.31192488,641.18,640.07,0.28680241]
[1739273120614,0.24942363,641.17,640.07,0.28680241]
[1739273120807,0.31193948,641.15,640.07,0.28680241]
[1739273121012,0.24942363,641.14,640.07,0.28680241]
[1739273121214,0.31195408,641.12,640.08,0.28680256]
[1739273121414,0.31195408,641.12,640.07,0.28680256]
[1739273121614,0.31195408,641.12,640.08,0.28680256]
[1739273121918,0.31195408,641.12,640.06,1.16062582]
[1739273123819,0.31195408,641.12,640.12,1.16062582]
[1739273126723,0.31195408,641.12,640.0,1.16062582]
[1739273127623,0.24946755,641.11,640.0,1.16062582]
[1739273128326,0.31196867,641.09,640.0,1.16062582]
[1739273128520,0.24946755,641.08,640.0,1.16062582]
[1739273128724,0.31196867,641.09,640.0,1.16062582]
[1739273128922,0.24953161,641.08,640.0,1.16062582]
[1739273129123,0.31198327,641.06,640.0,1.16062582]
[1739273129427,0.24953161,641.05,639.89,1.16062582]
[1739273129623,0.31199787,641.03,639.89,1.16062582]
[1739273129823,0.24958163,641.02,639.9,0.28688759]
[1739273130128,0.31201248,641.0,639.9,0.28688759]
[1739273130425,0.24958163,640.99,639.9,0.28688759]
[1739273130625,0.31202708,640.97,639.9,0.28688759]
[1739273131026,0.31202708,640.97,639.89,1.16062582]
[1739273131027,0.2496939,640.96,639.89,1.16062582]
[1739273131330,0.31204168,640.94,639.9,0.28691016]
[1739273131526,0.2496939,640.93,639.89,1.16062582]
[1739273131727,0.31205629,640.91,639.89,1.16062582]
[1739273131927,0.2496939,640.9,639.89,1.16062582]
[1739273132126,0.3120709,640.88,639.89,1.16062582]
[1739273132329,0.2496939,640.87,639.84,1.16062582]
[1739273132528,0.31208551,640.85,639.84,1.16062582]
[1739273132729,0.2496939,640.84,639.84,1.16062582]
[1739273132926,0.31210012,640.82,639.84,1.16062582]
[1739273133128,0.2496939,640.81,639.84,1.16062582]
[1739273133327,0.31211473,640.79,639.84,1.16062582]
[1739273133521,0.2496939,640.78,639.84,1.16062582]
[1739273133828,0.31212934,640.76,639.84,1.16062582]
[1739273134829,0.24977707,640.75,639.84,1.16062582]
[1739273135027,0.31214396,640.73,639.61,1.16062582]
[1739273135225,0.31214396,640.73,639.62,0.28697425]
[1739273136826,0.31214396,640.73,639.61,1.16062582]
[1739273137031,0.31214396,640.73,639.62,0.28696755]
[1739273137632,0.31214396,640.73,639.63,0.28696755]
[1739273137831,0.31214396,640.73,639.64,0.28696755]
[1739273138031,0.31214396,640.73,639.65,0.28696755]
[1739273138332,0.31214396,640.73,639.57,0.28696755]
[1739273138527,0.31214396,640.73,639.58,0.28696755]
[1739273138727,0.31214396,640.73,639.57,0.28696755]
[1739273138931,0.31214396,640.73,639.58,0.28696755]
[1739273139131,0.31214396,640.73,639.57,0.28696755]
[1739273139435,0.31214396,640.73,639.58,0.28696755]
[1739273139635,0.31214396,640.73,639.59,0.28696755]
[1739273139835,0.31214396,640.73,639.45,0.28696755]
[1739273140035,0.31214396,640.73,639.44,1.16062582]
[1739273140232,0.31214396,640.73,639.45,0.28696691]
[1739273142135,0.31214396,640.73,639.46,0.28696691]
[1739273142333,0.31214396,640.73,639.41,0.28696691]
[1739273142534,0.31214396,640.73,639.42,0.28696691]
[1739273142736,0.31214396,640.73,639.43,0.28696691]
[1739273143037,0.31214396,640.73,639.44,0.28696691]
[1739273143532,0.31214396,640.73,639.4,1.16062582]
[1739273144539,0.31214396,640.73,639.1,1.16062582]
[1739273144739,0.31214396,640.73,639.26,0.2869918]
[1739273146937,0.31214396,640.73,639.07,1.16062582]
[1739273147142,0.31214396,640.73,639.26,0.2869897]
[1739273154947,0.31214396,640.73,639.27,1.16062582]
[1739273155141,0.31214396,640.73,639.28,0.2869897]
[1739273158449,0.31214396,640.73,639.37,1.16062582]
[1739273158650,0.31214396,640.73,639.38,0.2869897]
[1739273160650,0.31214396,640.73,639.37,1.16062582]
[1739273160848,0.31214396,640.73,639.38,0.28696803]
[1739273161246,0.31214396,640.73,639.44,1.16062582]
[1739273161451,0.31214396,640.73,639.45,0.28696803]
[1739273163956,0.31214396,640.73,639.58,1.16062582]
[1739273164154,0.31214396,640.73,639.59,0.28696803]
[1739273165857,0.31214396,640.73,639.7,1.16062582]
[1739273168359,0.31214396,640.73,639.72,1.16062582]
[1739273169261,0.31214396,640.73,639.73,0.28686773]
[1739273170859,0.31214396,640.73,639.75,1.16062582]
[1739273171059,0.31214396,640.73,639.76,0.28686773]
[1739273173355,0.31214396,640.73,639.77,0.28686773]
[1739273173558,0.31214396,640.73,639.71,0.28686773]
[1739273173763,0.31214396,640.73,639.72,0.28686773]
[1739273173962,0.31214396,640.73,639.71,0.28686773]
[1739273174164,0.31214396,640.73,639.72,0.28686773]
[1739273174362,0.31214396,640.73,639.71,0.28686773]
[1739273174763,0.31214396,640.73,639.7,1.16062582]
[1739273175062,0.31214396,640.73,639.71,0.2868483]
[1739273175962,0.31214396,640.73,639.72,0.2868483]
[1739273176156,0.31214396,640.73,639.63,0.2868483]
[1739273176362,0.31214396,640.73,639.62,1.16062582]
[1739273176363,0.31214396,640.73,639.64,0.2868483]
[1739273176558,0.31214396,640.73,639.63,0.2868483]
[1739273176757,0.31214396,640.73,639.62,1.16062582]
[1739273176758,0.31214396,640.73,639.64,0.2868483]
[1739273176957,0.31214396,640.73,639.65,0.2868483]
[1739273177161,0.31214396,640.73,639.66,0.2868483]
[1739273177358,0.31214396,640.73,639.67,0.2868483]
[1739273177563,0.31214396,640.73,639.68,0.2868483]
[1739273177864,0.31214396,640.73,639.69,0.28684428]
[1739273178064,0.31214396,640.73,639.62,0.28684428]
[1739273178264,0.31214396,640.73,639.63,0.28684428]
[1739273178464,0.31214396,640.73,639.64,0.28684428]
[1739273178760,0.31214396,640.73,639.61,1.16062582]
[1739273178761,0.31214396,640.73,639.65,0.28684428]
[1739273178960,0.31214396,640.73,639.66,0.28684428]
[1739273179166,0.31214396,640.73,639.67,0.28684428]
[1739273179366,0.31214396,640.73,639.62,0.28684428]
[1739273179667,0.31214396,640.73,639.63,0.28684428]
[1739273179869,0.31214396,640.73,639.62,0.28684428]
[1739273180165,0.31214396,640.73,639.63,0.28684428]
[1739273180358,0.31214396,640.73,639.62,0.28684428]
[1739273180563,0.31214396,640.73,638.91,1.39275098]
[1739273180564,0.31214396,640.73,639.66,1.16062582]
[1739273180860,0.31214396,640.73,639.67,0.28684428]
[1739273181265,0.31214396,640.73,639.67,0.93212739]
[1739273182861,0.31214396,640.73,639.81,1.16062582]
[1739273183064,0.31214396,640.73,639.82,0.28682415]
[1739273184870,0.31214396,640.73,639.83,0.28682416]
[1739273185065,0.31214396,640.73,639.84,0.28682416]
[1739273185267,0.31214396,640.73,639.31,1.39275098]
[1739273185268,0.31214396,640.73,639.85,0.28682416]
[1739273185463,0.31214396,640.73,639.79,0.28682416]
[1739273185670,0.31214396,640.73,639.8,0.28682416]
[1739273185971,0.31214396,640.73,639.81,0.28682416]
[1739273186164,0.31214396,640.73,639.79,0.28682416]
[1739273186368,0.31214396,640.73,639.8,0.28682416]
[1739273186568,0.31214396,640.73,639.81,0.28682416]
[1739273186765,0.31214396,640.73,639.82,0.28682416]
[1739273186971,0.31214396,640.73,639.83,0.28682416]
[1739273187171,0.31214396,640.73,639.84,0.28682416]
[1739273187475,0.31214396,640.73,639.85,0.28682416]
[1739273187671,0.31214396,640.73,639.79,0.28682416]
[1739273187867,0.31214396,640.73,639.86,0.28682416]
[1739273188070,0.31214396,640.73,639.87,0.28682416]
[1739273188270,0.31214396,640.73,639.79,0.28682416]
[1739273188467,0.31214396,640.73,639.8,0.28682416]
[1739273188672,0.31214396,640.73,639.79,0.28682416]
[1739273188872,0.31214396,640.73,639.8,0.28682416]
[1739273189074,0.31214396,640.73,639.79,0.28682416]
[1739273189976,0.31214396,640.73,639.78,1.16062582]
[1739273190276,0.31214396,640.73,639.79,0.28679588]
[1739273192072,0.31214396,640.73,639.88,1.16062582]
[1739273192274,0.31214396,640.73,639.89,0.28679588]
[1739273196779,0.31214396,640.73,639.89,1.4474217]
[1739273196979,0.31214396,640.73,639.89,1.16062582]
[1739273197180,0.31214396,640.73,639.9,0.28681773]
[1739273198981,0.31214396,640.73,639.89,1.16062582]
[1739273199181,0.31214396,640.73,639.9,0.28682373]
[1739273200285,0.31214396,640.73,639.91,1.16062582]
[1739273200479,0.31214396,640.73,639.92,0.28682373]
[1739273203487,0.31214396,640.73,639.93,0.28682373]
[1739273203682,0.31214396,640.73,639.94,0.28682373]
[1739273203882,0.31214396,640.73,639.87,1.16062582]
[1739273204287,0.31214396,640.73,639.88,0.2868394]
[1739273205489,0.31214396,640.73,639.98,1.16062582]
[1739273207388,0.31214396,640.73,640.0,1.16062582]
[1739273209792,0.31214396,640.73,640.01,1.16062582]
[1739273211691,0.31214396,640.73,639.89,1.16062582]
[1739273215398,0.31214396,640.73,639.87,1.16062582]
[1739273218301,0.31214396,640.73,639.64,1.16062582]
[1739273218503,0.31214396,640.73,639.65,0.28695143]
[1739273221199,0.31214396,640.73,639.53,0.28695143]
[1739273223307,0.31214396,640.73,639.52,1.16062582]
[1739273223506,0.31214396,640.73,639.53,0.28695059]
[1739273223906,0.31214396,640.73,639.52,1.16062582]
[1739273224107,0.31214396,640.73,639.53,0.93305908]
[1739273225008,0.31214396,640.73,639.53,0.28693706]
[1739273225707,0.31214396,640.73,639.63,1.16062582]
[1739273225908,0.31214396,640.73,639.64,0.28693706]
[1739273228504,0.31214396,640.73,639.65,0.28693706]
[1739273228710,0.31214396,640.73,639.58,0.28693706]
[1739273228905,0.31214396,640.73,639.59,0.28693706]
[1739273229103,0.31214396,640.73,639.58,0.28693706]
[1739273230406,0.31214396,640.73,639.58,0.93200717]
[1739273230610,0.31214396,640.73,639.58,0.28693706]
[1739273234318,0.31214396,640.73,639.61,1.16062582]
[1739273234515,0.31214396,640.73,639.62,0.28693706]
[1739273237117,0.31214396,640.73,639.64,1.16062582]
[1739273237816,0.31214396,640.73,639.65,0.28695221]
[1739273240318,0.31214396,640.73,639.56,0.28695221]
[1739273240519,0.31214396,640.73,639.57,0.28695221]
[1739273240720,0.31214396,640.73,639.58,0.28695221]
[1739273240921,0.24979329,640.72,639.56,0.28695221]
[1739273241119,0.24979329,640.72,639.57,0.28695221]
[1739273241318,0.24979329,640.72,639.56,0.28695221]
[1739273241521,0.31215857,640.7,639.56,0.28695221]
[1739273242520,0.31215857,640.7,639.64,1.16062582]
[1739273245429,0.31215857,640.7,639.59,1.16062582]
[1739273247632,0.31215857,640.7,639.6,0.28690353]
[1739273248033,0.31215857,640.7,639.61,0.28690353]
[1739273248234,0.31215857,640.7,639.55,0.28690353]
[1739273248433,0.31215857,640.7,639.54,1.16062582]
[1739273248733,0.31215857,640.7,639.55,0.28691926]
[1739273250736,0.31215857,640.7,639.56,0.28691633]
[1739273250931,0.31215857,640.7,639.68,1.16062582]
[1739273251135,0.31215857,640.7,639.69,0.28691633]
[1739273252337,0.31215857,640.7,639.68,1.16062582]
[1739273252934,0.31215857,640.7,639.8,1.16062582]
[1739273256138,0.31215857,640.7,639.59,1.16062582]
[1739273256337,0.31215857,640.7,639.6,0.28690688]
[1739273257137,0.31215857,640.7,639.59,1.16062582]
[1739273257338,0.31215857,640.7,639.6,0.28690711]
[1739273259537,0.31215857,640.7,639.59,1.16062582]
[1739273259738,0.31215857,640.7,639.66,1.16062582]
[1739273260038,0.31215857,640.7,639.67,0.28690408]
[1739273260337,0.31215857,640.7,639.68,0.28688533]
[1739273260537,0.31215857,640.7,639.67,0.28688533]
[1739273263139,0.31215857,640.7,639.84,1.16062582]
[1739273263336,0.31215857,640.7,639.85,0.28688533]
[1739273265140,0.31215857,640.7,639.84,1.16062582]
[1739273265341,0.31215857,640.7,639.85,0.28684235]
[1739273266438,0.31215857,640.7,639.88,1.16062582]
[1739273266739,0.31215857,640.7,639.89,0.28684235]
[1739273269043,0.31215857,640.7,639.85,0.28684235]
[1739273270142,0.31215857,640.7,639.84,1.16062582]
[1739273270344,0.31215857,640.7,639.85,0.28684138]
[1739273272949,0.31215857,640.7,639.86,0.28684138]
[1739273273146,0.31215857,640.7,639.83,1.16062582]
[1739273273147,0.31215857,640.7,639.84,0.28684138]
[1739273273347,0.31215857,640.7,639.83,1.16062582]
[1739273273548,0.31215857,640.7,639.84,0.28689124]
[1739273274152,0.31215857,640.7,639.85,0.28689313]
[1739273274349,0.31215857,640.7,639.84,0.28689313]
[1739273274545,0.31215857,640.7,639.83,1.16062582]
[1739273275250,0.31215857,640.7,639.7,1.16062582]
[1739273275449,0.31215857,640.7,639.71,0.28689439]
[1739273276053,0.31215857,640.7,639.7,1.16062582]
[1739273276247,0.31215857,640.7,639.71,0.28690427]
[1739273277952,0.31215857,640.7,639.72,0.28690427]
[1739273278153,0.31215857,640.7,639.68,0.28690427]
[1739273278452,0.31215857,640.7,639.69,0.28690427]
[1739273278751,0.31215857,640.7,639.7,0.28690427]
[1739273278951,0.31215857,640.7,639.68,0.28690427]
[1739273279153,0.31215857,640.7,639.69,0.28690427]
[1739273279454,0.31215857,640.7,639.7,0.28690427]
[1739273279653,0.31215857,640.7,639.71,0.28686967]
[1739273279854,0.31215857,640.7,639.68,0.28686967]
[1739273280154,0.31215857,640.7,639.69,0.28686967]
[1739273280354,0.31215857,640.7,639.86,1.16062582]
[1739273280654,0.31215857,640.7,639.87,0.28686967]
[1739273281050,0.31215857,640.7,639.86,1.16062582]
[1739273281247,0.31215857,640.7,639.87,0.28688099]
[1739273281451,0.31215857,640.7,639.86,1.16062582]
[1739273283553,0.31215857,640.7,639.84,1.16062582]
[1739273286058,0.31215857,640.7,639.77,1.16062582]
[1739273286260,0.31215857,640.7,639.78,0.28690784]
[1739273288055,0.31215857,640.7,639.77,1.16062582]
[1739273288255,0.31215857,640.7,639.78,0.28691038]
[1739273288562,0.31215857,640.7,639.78,1.4475362]
[1739273288860,0.31215857,640.7,639.79,0.28691038]
[1739273290566,0.31215857,640.7,639.79,1.16062582]
[1739273291262,0.31215857,640.7,639.8,0.28692425]
[1739273293664,0.31215857,640.7,639.81,0.28692227]
[1739273293859,0.31215857,640.7,639.8,0.28692227]
[1739273294056,0.31215857,640.7,639.81,0.28692227]
[1739273294258,0.31215857,640.7,639.8,0.28692227]
[1739273294862,0.31215857,640.7,639.79,1.16062582]
[1739273295969,0.31215857,640.7,639.77,1.16062582]
[1739273296563,0.31215857,640.7,639.78,0.28694704]
[1739273296764,0.31215857,640.7,639.77,1.16062582]
[1739273299669,0.31215857,640.7,639.7,1.16062582]
[1739273299872,0.31215857,640.7,639.71,0.28690416]
[1739273300473,0.31215857,640.7,639.7,1.16062582]
[1739273302077,0.31215857,640.7,639.65,1.16062582]
[1739273305679,0.31215857,640.7,639.66,0.28689658]
[1739273308178,0.31215857,640.7,639.73,1.16062582]
[1739273311581,0.31215857,640.7,639.7,1.16062582]
[1739273311986,0.31215857,640.7,639.71,0.28691291]
[1739273313489,0.31215857,640.7,639.72,0.28691189]
[1739273313789,0.31215857,640.7,639.0,1.39275098]
[1739273313790,0.31215857,640.7,639.77,1.16062582]
[1739273315789,0.31215857,640.7,639.78,0.28690919]
[1739273316689,0.31215857,640.7,639.8,1.16062582]
[1739273318293,0.31215857,640.7,639.81,1.16062582]
[1739273319891,0.31215857,640.7,639.82,0.286896]
[1739273321089,0.31215857,640.7,639.81,1.16062582]
[1739273321491,0.31215857,640.7,639.87,1.16062582]
[1739273323194,0.31215857,640.7,639.83,1.16062582]
[1739273323395,0.31215857,640.7,639.84,0.28689749]
[1739273325797,0.31215857,640.7,639.89,1.16062582]
[1739273325996,0.31215857,640.7,639.9,0.28689749]
[1739273327495,0.31215857,640.7,639.89,1.16062582]
[1739273328295,0.31215857,640.7,639.92,1.16062582]
[1739273330903,0.31215857,640.7,639.71,1.16062582]
[1739273332904,0.31215857,640.7,639.72,0.28684891]
[1739273333200,0.31215857,640.7,639.72,1.16062582]
[1739273333399,0.31215857,640.7,639.73,0.28684645]
[1739273336602,0.31215857,640.7,639.84,1.16062582]
[1739273336805,0.31215857,640.7,639.85,0.28684645]
[1739273339307,0.31215857,640.7,639.93,1.16062582]
[1739273340912,0.31215857,640.7,639.94,0.28679135]
[1739273341609,0.31215857,640.7,639.88,0.28679135]
[1739273341810,0.31215857,640.7,639.89,0.28679135]
[1739273342017,0.31215857,640.7,639.88,0.28679135]
[1739273342309,0.31215857,640.7,639.89,0.28679135]
[1739273342513,0.31215857,640.7,639.88,0.28679135]
[1739273342714,0.31215857,640.7,639.89,0.28679135]
[1739273343013,0.31215857,640.7,639.9,0.28679135]
[1739273343207,0.31215857,640.7,639.88,0.28679135]
[1739273343913,0.31215857,640.7,639.89,0.28679135]
[1739273344114,0.31215857,640.7,639.87,0.28679135]
[1739273344314,0.31215857,640.7,639.88,0.28679135]
[1739273344615,0.31215857,640.7,639.89,0.28679135]
[1739273344812,0.31215857,640.7,639.86,1.16062582]
[1739273344813,0.31215857,640.7,639.87,0.28679135]
[1739273346417,0.31215857,640.7,639.88,1.16062582]
[1739273346615,0.31215857,640.7,639.89,0.28679135]
[1739273347113,0.31215857,640.7,639.88,1.16062582]
[1739273347317,0.31215857,640.7,639.89,0.28679436]
[1739273347814,0.31215857,640.7,639.88,1.16062582]
[1739273348008,0.31215857,640.7,639.89,0.2867642]
[1739273348715,0.31215857,640.7,639.98,1.16062582]
[1739273348912,0.31215857,640.7,639.99,0.2867642]
[1739273349314,1.39134925,641.94,639.99,0.2867642]
[1739273349614,0.3115653,641.92,639.99,0.2867642]
[1739273349918,0.24956062,641.91,639.99,0.2867642]
[1739273350217,0.31157986,641.89,639.99,0.2867642]
[1739273350417,0.24956062,641.88,639.99,0.2867642]
[1739273350611,0.24956062,641.88,639.98,1.16062582]
[1739273350612,0.31159442,641.86,639.98,1.16062582]
[1739273350815,0.24956062,641.85,640.07,1.16062582]
[1739273351012,0.31160899,641.83,640.07,1.16062582]
[1739273351218,0.24956062,641.82,640.07,1.16062582]
[1739273351413,0.31162355,641.8,640.07,1.16062582]
[1739273351613,0.24956062,641.79,640.07,1.16062582]
[1739273351919,0.31163812,641.77,640.07,1.16062582]
[1739273352121,0.24956062,641.76,640.07,1.16062582]
[1739273352317,0.31165269,641.74,640.07,1.16062582]
[1739273352522,0.24956062,641.73,640.07,1.16062582]
[1739273352719,0.31166726,641.71,640.07,1.16062582]
[1739273352916,0.24956062,641.7,639.84,1.16062582]
[1739273353121,0.31168183,641.68,639.85,0.28679193]
[1739273353320,0.24956062,641.67,639.85,0.28679193]
[1739273353519,0.3116964,641.65,639.85,0.28679193]
[1739273353721,0.24956062,641.64,639.85,0.28679193]
[1739273353917,0.31171098,641.62,639.85,0.28679193]
[1739273354116,0.24956062,641.61,639.85,0.28679193]
[1739273354316,0.31172555,641.59,639.85,0.28679193]
[1739273354518,0.31172555,641.59,639.84,1.16062582]
[1739273354721,0.2496008,641.58,639.85,0.28679116]
[1739273355222,0.31174013,641.56,639.74,1.16062582]
[1739273355422,0.24960076,641.55,639.75,0.28679116]
[1739273355621,0.31175471,641.53,639.75,0.28679116]
[1739273355921,0.24960076,641.52,639.75,0.28679116]
[1739273356122,0.31176929,641.5,639.75,0.28679116]
[1739273356315,0.24960076,641.49,639.75,0.28679116]
[1739273356519,0.31178387,641.47,639.75,0.28679116]
[1739273356720,0.24960076,641.46,639.75,0.28679116]
[1739273356921,0.31179845,641.44,639.75,0.28679116]
[1739273357118,0.24960076,641.43,639.75,0.28679116]
[1739273357322,0.31181303,641.41,639.75,0.28679116]
[1739273357623,0.31181303,641.41,639.76,0.28678351]
[1739273357819,0.31181303,641.41,639.75,0.28678351]
[1739273358021,0.24959336,641.4,639.76,0.28678351]
[1739273358222,0.31182762,641.38,639.75,0.28678351]
[1739273358424,0.24959336,641.37,639.76,0.28678351]
[1739273358622,0.24959336,641.37,639.74,1.16062582]
[1739273358623,0.3118422,641.35,639.77,0.28678351]
[1739273358927,0.24959336,641.34,639.78,0.28678351]
[1739273359124,0.31185679,641.32,639.75,0.28678351]
[1739273360722,0.31185679,641.32,639.83,1.16062582]
[1739273360927,0.24965697,641.31,639.83,1.16062582]
[1739273361135,0.31187138,641.29,639.83,1.16062582]
[1739273362629,0.24965902,641.28,639.83,1.16062582]
[1739273362928,0.31188597,641.26,639.83,1.16062582]
[1739273363930,0.31188597,641.26,639.68,1.16062582]
[1739273364131,0.31188597,641.26,639.69,0.28685166]
[1739273365333,0.2496619,641.25,639.69,0.28685166]
[1739273365531,0.31190056,641.23,639.69,0.28685166]
[1739273365726,0.2496619,641.22,639.69,0.28685166]
[1739273365928,0.31191515,641.2,639.69,0.28685166]
[1739273366128,0.2496619,641.19,639.69,0.28685166]
[1739273366433,0.31192975,641.17,639.69,0.28685166]
[1739273366633,0.2496619,641.16,639.69,0.28685166]
[1739273366832,0.31194434,641.14,639.69,0.28685166]
[1739273369533,0.31194434,641.14,639.79,1.16062582]
[1739273369736,0.31194434,641.14,639.8,0.28685166]
[1739273371531,0.31194434,641.14,639.81,1.16062582]
[1739273371733,0.31194434,641.14,639.82,0.28685166]
[1739273373440,0.24965227,641.13,639.82,0.28685166]
[1739273373635,0.31195894,641.11,639.82,0.28685166]
[1739273373835,0.24965227,641.1,639.82,0.28685166]
[1739273374538,0.31197354,641.08,639.83,1.16062582]
[1739273374741,0.24965227,641.07,639.84,0.28685166]
[1739273375041,0.31198814,641.05,639.84,0.28685166]
[1739273377640,0.31198814,641.05,639.93,1.16062582]
[1739273377835,0.31198814,641.05,639.94,0.28685166]
[1739273378032,0.31198814,641.05,639.93,1.16062582]
[1739273379742,0.31198814,641.05,639.82,1.16062582]
[1739273379937,0.31198814,641.05,639.83,0.28685816]
[1739273381437,0.31198814,641.05,639.84,0.28685816]
[1739273381641,0.31198814,641.05,639.81,0.28685816]
[1739273381839,0.31198814,641.05,639.82,0.28685816]
[1739273382145,0.31198814,641.05,639.83,0.28685697]
[1739273382444,0.31198814,641.05,639.84,0.28685697]
[1739273382646,0.31198814,641.05,639.81,0.28685697]
[1739273382846,0.31198814,641.05,639.82,0.28685697]
[1739273383249,0.31198814,641.05,639.83,0.28685697]
[1739273383547,0.31198814,641.05,639.84,0.28685697]
[1739273383745,0.31198814,641.05,639.81,0.28685697]
[1739273387345,0.31198814,641.05,639.87,1.16062582]
[1739273387646,0.31198814,641.05,639.88,0.28685697]
[1739273389441,0.24967097,641.04,639.9,1.16062582]
[1739273389643,0.31200274,641.02,639.91,0.28685697]
[1739273390744,0.24967319,641.01,639.91,0.28685697]
[1739273390947,0.31200274,641.02,639.9,1.16062582]
[1739273390948,0.31201734,640.99,639.9,1.16062582]
[1739273391148,0.31201734,640.99,639.91,0.28686477]
[1739273391550,0.31201734,640.99,639.9,1.16062582]
[1739273392244,0.31201734,640.99,639.94,1.16062582]
[1739273393950,0.31201734,640.99,639.77,1.16062582]
[1739273398052,0.31201734,640.99,639.78,1.16062582]
[1739273400455,0.31201734,640.99,639.73,1.16062582]
[1739273401555,0.31201734,640.99,639.74,0.2868982]
[1739273403158,0.31201734,640.99,639.81,1.16062582]
[1739273403359,0.31201734,640.99,639.82,0.2868982]
[1739273404656,0.31201734,640.99,639.81,1.16062582]
[1739273405554,0.31201734,640.99,639.25,1.70561762]
[1739273405555,0.31201734,640.99,639.8,1.16062582]
[1739273407565,0.31201734,640.99,639.71,1.16062582]
[1739273407862,0.31201734,640.99,639.72,0.28686716]
[1739273409764,0.31201734,640.99,639.71,1.16062582]
[1739273410063,0.31201734,640.99,639.76,1.16062582]
[1739273412757,0.31201734,640.99,639.25,0.31286664]
[1739273412758,0.31201734,640.99,639.72,1.16062582]
[1739273412959,0.31201734,640.99,639.73,0.28688575]
[1739273413662,0.31201734,640.99,639.74,0.28687211]
[1739273413863,0.31201734,640.99,639.73,0.28687211]
[1739273414064,0.31201734,640.99,639.74,0.28687211]
[1739273414257,0.31201734,640.99,639.73,0.28687211]
[1739273414460,0.31201734,640.99,639.74,0.28687211]
[1739273414658,0.31201734,640.99,639.73,0.28687211]